fUST/lending_fUST_20250118
["ID","MTS","AMOUNT","RATE_DAILY","PERIOD"]
[349389137,1737150632501,-24900.0,0.00019943,2]
[349389139,1737150632511,-12539.42184943,0.0002005,2]
[349389141,1737150632520,-160.94,0.00020236,2]
[349389143,1737150632531,-1655.95954911,0.00020236,2]
[349389145,1737150632540,-12539.42184943,0.00020278,2]
[349389147,1737150632549,-171.91767698,0.00020322,2]
[349389149,1737150632560,-1655.95954907,0.00020402,2]
[349389150,1737150632569,-420.0,0.00020479,2]
[349389151,1737150632578,-12539.42184946,0.00020556,2]
[349389152,1737150632589,-1655.95954907,0.00020568,2]
[349389154,1737150632598,-1655.95954907,0.00020734,2]
[349389156,1737150632607,-158.92480121,0.000209,2]
[349389158,1737150632617,-236.271,0.000209,2]
[349389160,1737150632631,-1655.95954907,0.000209,2]
[349389162,1737150632640,-24579.42295282,0.000209,3]
[349389164,1737150632650,-171.91767698,0.000209,2]
[349389166,1737150632659,-155.91566497,0.00020973,2]
[349389168,1737150632670,-500.0,0.00020973,2]
[349389170,1737150632679,-500.0,0.00020973,2]
[349389172,1737150632689,-500.0,0.00020973,2]
[349389174,1737150632699,-500.69303137,0.00020973,2]
[349389176,1737150632708,-503.55846386,0.00020973,2]
[349389178,1737150632717,-500.0,0.00020973,2]
[349389180,1737150632727,-263.64496828,0.00020973,2]
[349389182,1737150632736,-500.0,0.00020973,2]
[349389184,1737150632746,-162.23125796,0.00020973,2]
[349389186,1737150632755,-500.0,0.00020973,2]
[349389188,1737150632764,-480.22770746,0.00020995,2]
[349389190,1737150632773,-500.0,0.00020995,2]
[349389192,1737150632785,-500.0,0.00020995,2]
[349389194,1737150632794,-500.0,0.00020995,2]
[349389196,1737150632804,-500.0,0.00020995,2]
[349389198,1737150632813,-500.0,0.00020995,2]
[349389200,1737150632822,-500.0,0.00020995,2]
[349389202,1737150632832,-500.0,0.00020995,2]
[349389204,1737150632841,-500.0,0.00020995,2]
[349389206,1737150632850,-500.0,0.00020995,2]
[349389208,1737150632859,-500.0,0.00020995,2]
[349389210,1737150632869,-216.73559317,0.00020995,2]
[349389212,1737150632878,-500.0,0.00020995,2]
[349389214,1737150632887,-500.0,0.00020995,2]
[349389215,1737150632897,-500.0,0.00020995,2]
[349389217,1737150632907,-500.0,0.00020995,2]
[349389219,1737150632916,-397.30889262,0.00020995,2]
[349389221,1737150632926,-500.0,0.00020995,2]
[349389223,1737150632936,-500.0,0.00020995,2]
[349389226,1737150632945,-500.0,0.00020995,2]
[349389227,1737150632955,-500.0,0.00020995,2]
[349389229,1737150632965,-651.83529958,0.00020995,2]
[349389231,1737150632975,-616.38726512,0.00020995,2]
[349389233,1737150632984,-500.0,0.00020995,2]
[349389235,1737150632993,-500.0,0.00020995,2]
[349389237,1737150633003,-500.0,0.00020995,2]
[349389238,1737150633012,-500.0,0.00020995,2]
[349389239,1737150633022,-500.0,0.00020995,2]
[349389240,1737150633031,-500.0,0.00020995,2]
[349389241,1737150633041,-500.0,0.00020995,2]
[349389242,1737150633050,-500.0,0.00020995,2]
[349389243,1737150633060,-500.0,0.00020995,2]
[349389244,1737150633070,-500.0,0.00020995,2]
[349389245,1737150633079,-480.0,0.00020995,2]
[349389246,1737150633088,-500.0,0.00020995,2]
[349389247,1737150633098,-500.0,0.00020995,2]
[349389248,1737150633107,-500.0,0.00020995,2]
[349389249,1737150633117,-500.0,0.00020995,2]
[349389250,1737150633127,-500.0,0.00020995,2]
[349389251,1737150633137,-500.0,0.00020995,2]
[349389252,1737150633148,-500.0,0.00020995,2]
[349389253,1737150633158,-500.0,0.00020995,2]
[349389254,1737150633168,-500.0,0.00020995,2]
[349389255,1737150633178,-160.0,0.00020999,2]
[349389256,1737150633188,-300.0,0.00020999,2]
[349389257,1737150633197,-1375.06918843,0.00021,5]
[349389258,1737150633207,-1573.10354477,0.00021,5]
[349389259,1737150633217,-313165.27304387,0.00021,10]
[349389348,1737150640827,-1595.91383582,0.000209,2]
[349389349,1737150640837,-500.0,0.00020995,2]
[349389350,1737150640847,-500.0,0.00020995,2]
[349389351,1737150640857,-500.0,0.00020995,2]
[349389352,1737150640867,-500.0,0.00020995,2]
[349389353,1737150640876,-500.0,0.00020995,2]
[349389354,1737150640885,-500.0,0.00020995,2]
[349389355,1737150640895,-500.0,0.00020995,2]
[349389356,1737150640905,-500.0,0.00020995,2]
[349389357,1737150640915,-500.0,0.00020995,2]
[349389358,1737150640924,-500.0,0.00020995,2]
[349389359,1737150640934,-500.0,0.00020995,2]
[349389360,1737150640944,-500.0,0.00020995,2]
[349389361,1737150640953,-500.0,0.00020995,2]
[349389362,1737150640963,-500.0,0.00020995,2]
[349389363,1737150640973,-500.0,0.00020995,2]
[349389364,1737150640983,-298514.50650356,0.00021,10]
[349389422,1737150690748,160.0,0.00022859,120]
[349389423,1737150750736,160.0,0.00022857,120]
[349389424,1737150811337,160.0,0.00023874,120]
[349389426,1737150862502,162.186398,0.00013973,2]
[349389427,1737150871806,160.0,0.00023766,120]
[349389428,1737150930738,160.0,0.00024207,120]
[349389429,1737151050711,160.0,0.00022877,120]
[349389430,1737151110736,160.0,0.00024537,120]
[349389431,1737151170736,160.0,0.00024694,120]
[349389432,1737151230805,160.0,0.00024996,120]
[349389433,1737151318453,194.101866,0.0002411,120]
[349389434,1737151410988,160.0,0.0002428,120]
[349389435,1737151430389,2009.87,0.00025,120]
[349389436,1737151470705,160.0,0.00024023,120]
[349389437,1737151532089,160.0,0.0002392,120]
[349389438,1737151591302,160.0,0.00022742,120]
[349389444,1737151645505,3868.9122121,0.00025,120]
[349389445,1737151650752,160.0,0.00023361,120]
[349389448,1737151710740,160.0,0.00023961,120]
[349389458,1737151762473,162.258767,0.00013973,2]
[349389462,1737151771296,160.0,0.00024644,120]
[349389465,1737151830786,160.0,0.00024133,120]
[349389510,1737151832416,-500.0,0.00019178,7]
[349389512,1737151832425,-1228.0,0.0002,2]
[349389514,1737151832435,-1542.71670794,0.000209,2]
[349389516,1737151832445,-300.0,0.00020972,2]
[349389518,1737151832454,-500.0,0.00020973,2]
[349389520,1737151832464,-500.0,0.00020973,2]
[349389522,1737151832474,-394.65503885,0.00020973,2]
[349389524,1737151832484,-500.0,0.00020973,2]
[349389526,1737151832494,-500.0,0.00020973,2]
[349389528,1737151832503,-500.0,0.00020973,2]
[349389530,1737151832513,-502.08762473,0.00020973,2]
[349389532,1737151832522,-173.37260861,0.00020973,2]
[349389534,1737151832531,-500.0,0.00020973,2]
[349389536,1737151832540,-500.0,0.00020973,2]
[349389538,1737151832550,-500.0,0.00020973,2]
[349389540,1737151832559,-500.0,0.00020973,2]
[349389541,1737151832570,-502.65607602,0.00020973,2]
[349389543,1737151832579,-500.0,0.00020973,2]
[349389545,1737151832589,-500.0,0.00020973,2]
[349389546,1737151832599,-288.24883383,0.00020973,2]
[349389547,1737151832608,-309.0,0.00020994,60]
[349389548,1737151832617,-189.017,0.00020998,2]
[349389549,1737151832627,-160.0,0.00020999,2]
[349389550,1737151832637,-500.0,0.00020999,2]
[349389552,1737151832646,-500.0,0.00020999,2]
[349389553,1737151832656,-500.0,0.00020999,2]
[349389554,1737151832665,-500.0,0.00020999,2]
[349389555,1737151832674,-500.0,0.00020999,2]
[349389556,1737151832683,-511.63872651,0.00020999,2]
[349389557,1737151832692,-500.0,0.00020999,2]
[349389558,1737151832701,-500.0,0.00020999,2]
[349389559,1737151832710,-500.0,0.00020999,2]
[349389560,1737151832719,-500.0,0.00020999,2]
[349389561,1737151832728,-392.55588334,0.00020999,2]
[349389562,1737151832737,-500.0,0.00020999,2]
[349389563,1737151832747,-500.0,0.00020999,2]
[349389564,1737151832756,-500.0,0.00020999,2]
[349389565,1737151832774,-500.0,0.00020999,2]
[349389566,1737151832784,-500.0,0.00020999,2]
[349389567,1737151832794,-500.0,0.00020999,2]
[349389568,1737151832803,-500.0,0.00020999,2]
[349389570,1737151832813,-500.0,0.00020999,2]
[349389572,1737151832824,-500.0,0.00020999,2]
[349389573,1737151832841,-500.0,0.00020999,2]
[349389576,1737151832851,-500.0,0.00020999,2]
[349389577,1737151832860,-500.0,0.00020999,2]
[349389579,1737151832870,-500.0,0.00020999,2]
[349389581,1737151832879,-500.0,0.00020999,2]
[349389583,1737151832889,-500.0,0.00020999,2]
[349389585,1737151832898,-500.0,0.00020999,2]
[349389587,1737151832908,-500.0,0.00020999,2]
[349389589,1737151832917,-500.0,0.00020999,2]
[349389591,1737151832926,-531.70122617,0.00020999,2]
[349389593,1737151832936,-500.0,0.00020999,2]
[349389596,1737151832946,-500.0,0.00020999,2]
[349389598,1737151832955,-500.0,0.00020999,2]
[349389599,1737151832965,-500.0,0.00020999,2]
[349389601,1737151832975,-500.0,0.00020999,2]
[349389603,1737151832984,-500.0,0.00020999,2]
[349389605,1737151832993,-500.0,0.00020999,2]
[349389607,1737151833004,-500.0,0.00020999,2]
[349389610,1737151833015,-500.0,0.00020999,2]
[349389612,1737151833025,-500.0,0.00020999,2]
[349389614,1737151833034,-388.46152059,0.00020999,2]
[349389638,1737151838180,-111.53847941,0.00020999,2]
[349389639,1737151838191,-500.0,0.00020999,2]
[349389640,1737151838201,-498.46152066,0.00020999,2]
[349389641,1737151838213,-1.53847934,0.00020999,2]
[349389642,1737151838223,-500.0,0.00020999,2]
[349389643,1737151838233,-500.0,0.00020999,2]
[349389644,1737151838243,-279.03716255,0.00020999,2]
[349389645,1737151838253,-500.0,0.00020999,2]
[349389646,1737151838263,-500.0,0.00020999,2]
[349389648,1737151838275,-500.0,0.00020999,2]
[349389649,1737151838285,-500.0,0.00020999,2]
[349389650,1737151838295,-687.53459422,0.00021,5]
[349389651,1737151838304,-786.55177238,0.00021,5]
[349389652,1737151838314,-4656.8183507,0.00021,10]
[349389653,1737151838328,-607.38906967,0.00021,10]
[349389658,1737151840226,-2120.73153372,0.00021,10]
[349389659,1737151840254,-277073.37446074,0.00021,10]
[349389660,1737151840266,-1178.02051644,0.00021,10]
[349389661,1737151840278,-1842.46185693,0.00021,10]
[349389662,1737151840290,-337.07959307,0.00021,10]
[349389663,1737151840309,-135398.88507134,0.00021,10]
[349389664,1737151840322,-1325.4309568,0.00021,10]
[349389678,1737151843336,-455.09241708,0.00021,10]
[349389679,1737151843360,-1145.23774556,0.00021,10]
[349389680,1737151843468,-466.24133883,0.00021,10]
[349389681,1737151843480,-452.112233,0.00021,10]
[349389682,1737151843491,-366.45182833,0.00021,10]
[349389683,1737151843503,-1467.50837983,0.00021,10]
[349389684,1737151843516,-793797.18760689,0.00021,10]
[349389685,1737151843525,-10199.51,0.00021,2]
[349389686,1737151843535,-1729.65,0.00021,2]
[349389687,1737151843545,-1000239.51,0.00021,10]
[349389688,1737151843555,-151.0,0.00021,2]
[349389689,1737151843564,-151.0,0.00021,2]
[349389690,1737151843575,-151.0,0.00021,2]
[349389691,1737151843585,-151.0,0.00021,4]
[349389692,1737151843595,-1542.71670788,0.00021003,2]
[349389693,1737151843604,-1542.71670788,0.00021107,2]
[349389694,1737151843613,-1542.71670788,0.0002121,2]
[349389695,1737151843623,-153.9757311,0.00021288,2]
[349389696,1737151843633,-1542.71670788,0.00021314,2]
[349389697,1737151843642,-1542.71670788,0.00021417,2]
[349389698,1737151843652,-338.84348904,0.00021521,2]
[349389699,1737151843663,-500.0,0.00021521,2]
[349389700,1737151843672,-500.0,0.00021521,2]
[349389701,1737151843682,-500.0,0.00021521,2]
[349389702,1737151843691,-501.17272382,0.00021521,2]
[349389703,1737151843702,-500.0,0.00021521,2]
[349389704,1737151843711,-1000.0,0.00021521,2]
[349389705,1737151843721,-1542.71670788,0.00021521,2]
[349389706,1737151843730,-1228.0,0.000216,4]
[349389707,1737151843740,-1542.71670788,0.00021624,3]
[349389708,1737151843749,-1542.71670788,0.00021728,3]
[349389709,1737151843759,-1542.71670788,0.00021831,3]
[349389710,1737151843768,-190.05545624,0.00021899,2]
[349389711,1737151843778,-37991.40657993,0.000219,3]
[349389712,1737151843787,-395.0,0.00021905,2]
[349389713,1737151843797,-151.0,0.00021917,2]
[349389714,1737151843807,-500.0,0.00021917,3]
[349389715,1737151843816,-500.0,0.00021917,3]
[349389716,1737151843834,-274.48909496,0.00021917,3]
[349389717,1737151843846,-151.0,0.00021917,2]
[349389718,1737151843856,-500.0,0.00021917,2]
[349389719,1737151843865,-151.0,0.00021917,2]
[349389720,1737151843874,-151.0,0.00021917,2]
[349389721,1737151843884,-257.973748,0.00021917,2]
[349389722,1737151843893,-500.0,0.00021917,3]
[349389723,1737151843903,-500.130621,0.00021917,3]
[349389724,1737151843913,-500.0,0.00021917,3]
[349389725,1737151843923,-151.0,0.00021917,2]
[349389726,1737151843932,-230.692342,0.00021917,2]
[349389727,1737151843942,-500.0,0.00021917,3]
[349389728,1737151843952,-500.83440892,0.00021917,3]
[349389729,1737151843961,-500.0,0.00021917,3]
[349389730,1737151843970,-500.24047302,0.00021917,3]
[349389731,1737151843980,-502.53844464,0.00021917,3]
[349389732,1737151843991,-500.0,0.00021917,3]
[349389733,1737151844001,-151.0,0.00021917,2]
[349389734,1737151844016,-151.425191,0.00021917,2]
[349389735,1737151844025,-500.0,0.00021917,3]
[349389736,1737151844034,-500.0,0.00021917,3]
[349389737,1737151844044,-151.0,0.00021917,2]
[349389738,1737151844055,-151.0,0.00021917,2]
[349389739,1737151844064,-151.0,0.00021917,2]
[349389740,1737151844075,-500.0,0.00021917,3]
[349389741,1737151844085,-151.0,0.00021917,2]
[349389742,1737151844094,-169.814454,0.00021917,2]
[349389743,1737151844104,-500.0,0.00021917,3]
[349389744,1737151844113,-151.0,0.00021917,2]
[349389745,1737151844123,-500.0,0.00021917,3]
[349389746,1737151844133,-500.0,0.00021917,3]
[349389747,1737151844142,-500.0,0.00021917,3]
[349389748,1737151844152,-500.0,0.00021917,3]
[349389749,1737151844161,-159.776908,0.00021917,2]
[349389750,1737151844171,-500.0,0.00021917,3]
[349389751,1737151844180,-500.0,0.00021917,3]
[349389752,1737151844190,-500.0,0.00021917,3]
[349389753,1737151844199,-500.0,0.00021917,3]
[349389754,1737151844209,-500.0,0.00021917,3]
[349389755,1737151844218,-500.0,0.00021917,3]
[349389756,1737151844227,-500.0,0.00021917,3]
[349389757,1737151844237,-500.0,0.00021917,3]
[349389758,1737151844246,-500.0,0.00021917,3]
[349389759,1737151844255,-500.0,0.00021917,3]
[349389760,1737151844265,-500.0,0.00021917,3]
[349389761,1737151844275,-500.0,0.00021917,3]
[349389762,1737151844285,-500.0,0.00021917,3]
[349389763,1737151844294,-500.0,0.00021917,3]
[349389764,1737151844303,-500.70382549,0.00021917,3]
[349389765,1737151844312,-500.0,0.00021917,3]
[349389766,1737151844322,-500.0,0.00021917,3]
[349389767,1737151844332,-500.0,0.00021917,3]
[349389768,1737151844342,-500.0,0.00021917,3]
[349389769,1737151844352,-500.0,0.00021917,3]
[349389770,1737151844361,-500.0,0.00021917,3]
[349389771,1737151844371,-500.0,0.00021917,3]
[349389772,1737151844380,-500.0,0.00021917,3]
[349389773,1737151844389,-500.0,0.00021917,3]
[349389774,1737151844399,-500.0,0.00021917,3]
[349389775,1737151844409,-313.88972952,0.00021917,3]
[349389776,1737151844418,-500.0,0.00021917,3]
[349389777,1737151844428,-500.0,0.00021917,3]
[349389778,1737151844437,-500.0,0.00021917,3]
[349389779,1737151844448,-500.0,0.00021917,3]
[349389780,1737151844458,-500.0,0.00021917,3]
[349389781,1737151844468,-500.0,0.00021917,3]
[349389782,1737151844477,-500.0,0.00021917,3]
[349389783,1737151844487,-151.0,0.00021917,2]
[349389784,1737151844496,-151.0,0.00021917,2]
[349389785,1737151844506,-151.0,0.00021917,2]
[349389786,1737151844515,-500.0,0.00021917,3]
[349389787,1737151844524,-500.0,0.00021917,3]
[349389788,1737151844534,-500.0,0.00021917,3]
[349389789,1737151844543,-500.0,0.00021917,3]
[349389790,1737151844553,-500.0,0.00021917,3]
[349389791,1737151844562,-500.0,0.00021917,3]
[349389792,1737151844571,-500.0,0.00021917,3]
[349389793,1737151844582,-500.0,0.00021917,3]
[349389794,1737151844591,-500.0,0.00021917,3]
[349389795,1737151844601,-500.0,0.00021917,3]
[349389796,1737151844610,-500.0,0.00021917,3]
[349389797,1737151844619,-500.0,0.00021917,3]
[349389798,1737151844629,-500.0,0.00021917,3]
[349389799,1737151844638,-301.810889,0.00021917,2]
[349389800,1737151844647,-500.0,0.00021917,3]
[349389801,1737151844657,-301.810889,0.00021917,2]
[349389802,1737151844667,-500.4163756,0.00021917,3]
[349389803,1737151844676,-301.810889,0.00021917,2]
[349389804,1737151844686,-301.810889,0.00021917,2]
[349389805,1737151844696,-500.0,0.00021917,3]
[349389806,1737151844705,-500.0,0.00021917,3]
[349389807,1737151844716,-501.125226,0.00021917,3]
[349389808,1737151844725,-500.0,0.00021917,3]
[349389809,1737151844735,-500.0,0.00021917,3]
[349389810,1737151844744,-191.653709,0.00021917,2]
[349389811,1737151844754,-500.0,0.00021917,3]
[349389812,1737151844763,-500.0,0.00021917,3]
[349389813,1737151844772,-438.80858685,0.00021917,3]
[349389814,1737151844782,-500.0,0.00021917,3]
[349389815,1737151844791,-500.0,0.00021917,3]
[349389816,1737151844801,-500.0,0.00021917,3]
[349389817,1737151844811,-500.0,0.00021917,3]
[349389818,1737151844820,-500.66782575,0.00021917,3]
[349389819,1737151844831,-500.0,0.00021917,3]
[349389820,1737151844841,-502.02388033,0.00021917,2]
[349389821,1737151844851,-500.0,0.00021917,3]
[349389822,1737151844860,-500.0,0.00021917,3]
[349389823,1737151844869,-500.0,0.00021917,3]
[349389824,1737151844879,-500.0,0.00021917,3]
[349389825,1737151844889,-500.0,0.00021917,3]
[349389826,1737151844898,-500.0,0.00021917,3]
[349389827,1737151844908,-500.0,0.00021917,3]
[349389828,1737151844918,-499.30467281,0.00021917,3]
[349389829,1737151844927,-617.96592511,0.00021917,3]
[349389830,1737151844936,-500.22354372,0.00021917,3]
[349389831,1737151844945,-500.0,0.00021917,3]
[349389832,1737151844954,-500.0,0.00021917,3]
[349389833,1737151844963,-500.0,0.00021917,3]
[349389834,1737151844972,-500.0,0.00021917,3]
[349389835,1737151844981,-500.0,0.00021917,3]
[349389836,1737151844991,-500.0,0.00021917,3]
[349389837,1737151845000,-500.0,0.00021917,3]
[349389838,1737151845012,-500.0,0.00021917,3]
[349389839,1737151845030,-500.0,0.00021917,3]
[349389840,1737151845041,-500.0,0.00021917,3]
[349389841,1737151845050,-500.0,0.00021917,3]
[349389842,1737151845059,-500.0,0.00021917,3]
[349389843,1737151845069,-500.0,0.00021917,3]
[349389844,1737151845081,-500.0,0.00021917,3]
[349389845,1737151845091,-500.0,0.00021917,3]
[349389846,1737151845101,-151.0,0.00021917,2]
[349389847,1737151845111,-151.0,0.00021917,2]
[349389848,1737151845121,-151.0,0.00021917,2]
[349389849,1737151845131,-151.0,0.00021917,2]
[349389850,1737151845141,-151.0,0.00021917,2]
[349389851,1737151845151,-151.0,0.00021917,2]
[349389852,1737151845161,-500.0,0.00021917,3]
[349389853,1737151845171,-500.0,0.00021917,3]
[349389854,1737151845181,-508.69561786,0.00021917,3]
[349389855,1737151845191,-500.0,0.00021917,3]
[349389856,1737151845201,-151.0,0.00021917,2]
[349389857,1737151845211,-151.0,0.00021917,2]
[349389858,1737151845220,-151.0,0.00021917,2]
[349389859,1737151845230,-151.0,0.00021917,2]
[349389860,1737151845239,-151.0,0.00021917,2]
[349389861,1737151845249,-500.0,0.00021917,3]
[349389862,1737151845259,-500.0,0.00021917,3]
[349389863,1737151845268,-500.0,0.00021917,3]
[349389864,1737151845278,-500.0,0.00021917,3]
[349389865,1737151845288,-502.21384198,0.00021917,3]
[349389866,1737151845297,-500.0,0.00021917,3]
[349389867,1737151845307,-500.0,0.00021917,3]
[349389868,1737151845317,-500.0,0.00021917,3]
[349389869,1737151845328,-500.0,0.00021917,3]
[349389870,1737151845337,-500.0,0.00021917,3]
[349389871,1737151845347,-500.0,0.00021917,3]
[349389872,1737151845357,-151.0,0.00021917,2]
[349389873,1737151845368,-151.0,0.00021917,2]
[349389874,1737151845377,-500.0,0.00021917,3]
[349389875,1737151845387,-500.0,0.00021917,3]
[349389876,1737151845396,-500.0,0.00021917,3]
[349389877,1737151845406,-500.0,0.00021917,3]
[349389878,1737151845415,-500.0,0.00021917,3]
[349389879,1737151845424,-500.0,0.00021917,3]
[349389880,1737151845433,-500.0,0.00021917,3]
[349389881,1737151845443,-500.0,0.00021917,3]
[349389882,1737151845453,-500.0,0.00021917,3]
[349389883,1737151845590,-500.0,0.00021917,3]
[349389884,1737151845600,-500.0,0.00021917,3]
[349389885,1737151845610,-500.0,0.00021917,3]
[349389887,1737151845621,-500.0,0.00021917,3]
[349389888,1737151845630,-500.0,0.00021917,3]
[349389889,1737151845639,-151.0,0.00021917,2]
[349389890,1737151845649,-500.0,0.00021917,3]
[349389891,1737151845659,-500.0,0.00021917,3]
[349389892,1737151845668,-500.0,0.00021917,3]
[349389893,1737151845677,-500.0,0.00021917,3]
[349389894,1737151845686,-554.00077562,0.00021917,3]
[349389895,1737151845696,-500.0,0.00021917,3]
[349389896,1737151845705,-500.0,0.00021917,3]
[349389897,1737151845715,-500.0,0.00021917,3]
[349389898,1737151845725,-500.0,0.00021917,3]
[349389899,1737151845734,-500.0,0.00021917,3]
[349389900,1737151845744,-500.0,0.00021917,3]
[349389901,1737151845754,-500.0,0.00021917,3]
[349389903,1737151845763,-500.0,0.00021917,3]
[349389904,1737151845773,-477.78907011,0.00021917,3]
[349389905,1737151845782,-220.570283,0.00021917,2]
[349389906,1737151845792,-500.0,0.00021917,3]
[349389907,1737151845801,-500.0,0.00021917,3]
[349389908,1737151845813,-500.0,0.00021917,3]
[349389909,1737151845823,-500.0,0.00021917,3]
[349389910,1737151845833,-1075.82689,0.00021917,2]
[349389912,1737151845843,-1075.82689,0.00021917,2]
[349389913,1737151845852,-1075.82689,0.00021917,2]
[349389914,1737151845862,-1075.82689,0.00021917,2]
[349389915,1737151845871,-1075.82689,0.00021917,2]
[349389916,1737151845880,-1075.82689,0.00021917,2]
[349389917,1737151845889,-375.88722798,0.00021917,3]
[349389918,1737151845898,-500.0,0.00021917,3]
[349389919,1737151845908,-500.0,0.00021917,3]
[349389920,1737151845917,-417.70643716,0.00021917,2]
[349389921,1737151845926,-500.0,0.00021917,3]
[349389922,1737151845941,-500.0,0.00021917,3]
[349389923,1737151845953,-198.367607,0.00021917,2]
[349389924,1737151845963,-500.0,0.00021917,3]
[349389925,1737151845972,-198.367607,0.00021917,2]
[349389926,1737151845982,-198.367607,0.00021917,2]
[349389927,1737151845991,-198.367607,0.00021917,2]
[349389928,1737151846000,-500.0,0.00021917,3]
[349389929,1737151846012,-198.367607,0.00021917,2]
[349389930,1737151846021,-198.367607,0.00021917,2]
[349389931,1737151846030,-500.0,0.00021917,3]
[349389932,1737151846039,-500.0,0.00021917,3]
[349389933,1737151846048,-500.0,0.00021917,3]
[349389934,1737151846057,-500.0,0.00021917,3]
[349389935,1737151846067,-500.0,0.00021917,3]
[349389936,1737151846078,-578.94847108,0.00021917,3]
[349389937,1737151846088,-500.0,0.00021917,3]
[349389938,1737151846098,-500.0,0.00021917,3]
[349389939,1737151846108,-500.0,0.00021917,3]
[349389940,1737151846118,-500.0,0.00021917,3]
[349389941,1737151846127,-500.97650607,0.00021917,3]
[349389942,1737151846136,-507.24823379,0.00021917,3]
[349389943,1737151846146,-500.0,0.00021917,3]
[349389945,1737151846155,-500.0,0.00021917,3]
[349389946,1737151846165,-500.0,0.00021917,3]
[349389947,1737151846174,-500.0,0.00021917,3]
[349389948,1737151846184,-500.0,0.00021917,3]
[349389949,1737151846194,-500.0,0.00021917,3]
[349389950,1737151846203,-500.0,0.00021917,3]
[349389951,1737151846213,-618.58,0.00021917,3]
[349389952,1737151846222,-151.0,0.00021917,2]
[349389953,1737151846232,-500.0,0.00021917,3]
[349389954,1737151846241,-500.0,0.00021917,3]
[349389955,1737151846251,-500.0,0.00021917,3]
[349389956,1737151846260,-500.0,0.00021917,3]
[349389957,1737151846270,-500.0,0.00021917,3]
[349389958,1737151846281,-500.0,0.00021917,3]
[349389959,1737151846291,-251.61915138,0.00021917,3]
[349389960,1737151846300,-507.08302439,0.00021917,3]
[349389961,1737151846309,-500.0,0.00021917,3]
[349389962,1737151846319,-500.0,0.00021917,3]
[349389963,1737151846331,-500.0,0.00021917,3]
[349389965,1737151846341,-151.0,0.00021917,2]
[349389967,1737151846350,-151.0,0.00021917,2]
[349389969,1737151846360,-151.0,0.00021917,2]
[349389972,1737151846371,-500.0,0.00021917,3]
[349389974,1737151846381,-500.0,0.00021917,3]
[349389976,1737151846390,-500.0,0.00021917,3]
[349389977,1737151846399,-500.0,0.00021917,3]
[349389979,1737151846409,-500.0,0.00021917,3]
[349389981,1737151846418,-500.0,0.00021917,3]
[349389982,1737151846428,-500.0,0.00021917,3]
[349389984,1737151846438,-500.0,0.00021917,3]
[349389986,1737151846447,-500.0,0.00021917,3]
[349389988,1737151846456,-500.0,0.00021917,3]
[349389989,1737151846466,-500.0,0.00021917,3]
[349389990,1737151846476,-151.0,0.00021917,2]
[349389991,1737151846485,-151.0,0.00021917,2]
[349389992,1737151846494,-168.003514,0.00021917,2]
[349389993,1737151846504,-500.0,0.00021917,3]